Workbook

Sheet ORÇAMENTO
B2: TODOS OS VALORES ESTÃO NA UNIDADE MONETÁRIA REAL
B3: ITEM | C3: SERVIÇO | D3: UN | E3: QUANTI. | F3: VALOR S/ BDI | G3: BDI | H3: VALOR C/ BDI | I3: VALOR TOTAL | J3: CÓDIGO | K3: FONTE
B4: 1 | C4: SERVIÇOS INICIAIS | H4: ∑ | I4: =SUBTOTAL(9,I5:I6) -> 3316.81
B5: 1.1 | C5: Placa de Obra em Chapa de Aço Galvanizado | D5: M2 | E5: 2.88 | F5: 383.81 | G5: ='BDI 20,34%'!$C$26 -> 0.2034 | H5: =ROUND(((F5*G5)+F5),2) -> 461.88 | I5: =IF(ISERR(ROUND((E5*H5),2)),"",ROUND((E5*H5),2)) -> 1330.21 | J5: 74209/1 | K5: SINAPI
B6: 1.2 | C6: Locação de Obra Convencional, através de Gabarito de Madeira | D6: M | E6: 33.45 | F6: 49.35 | G6: ='BDI 20,34%'!$C$26 -> 0.2034 | H6: =ROUND(((F6*G6)+F6),2) -> 59.39 | I6: 1986.6 | J6: 99059 | K6: SINAPI
B7: 2 | C7: FUNDAÇÃO PROFUNDA | H7: ∑ | I7: =SUBTOTAL(9,I8:I11) -> 5408.86
B8: 2.1 | C8: Estaca Escavada Mecanicamente Ø25cm, Escavada com Perfuratriz Hidráulica | D8: M | E8: 72 | F8: 41.37 | G8: ='BDI 20,34%'!$C$26 -> 0.2034 | H8: =ROUND(((F8*G8)+F8),2) -> 49.78 | I8: =IF(ISERR(ROUND((E8*H8),2)),"",ROUND((E8*H8),2)) -> 3584.16 | J8: 90877 | K8: SINAPI
B9: 2.2 | C9: Armaduras
B10: 2.2.1 | C10: Armadura CA-60 - 5.0mm (fornecimento, corte, dobra e colocação) | D10: KG | E10: 28.64 | F10: 12.97 | G10: ='BDI 20,34%'!$C$26 -> 0.2034 | H10: =ROUND(((F10*G10)+F10),2) -> 15.61 | I10: =IF(ISERR(ROUND((E10*H10),2)),"",ROUND((E10*H10),2)) -> 447.07 | J10: 92775 | K10: SINAPI
B11: 2.2.2 | C11: Armadura CA-50 - 8.0mm (fornecimento, corte, dobra e colocação) | D11: KG | E11: 113.76 | F11: 10.06 | G11: ='BDI 20,34%'!$C$26 -> 0.2034 | H11: =ROUND(((F11*G11)+F11),2) -> 12.11 | I11: 1377.63 | J11: 92777 | K11: SINAPI
B12: 3 | C12: INFRAESTRUTURA | H12: ∑ | I12: =SUBTOTAL(9,I13:I24) -> 14330.07
B13: 3.1 | C13: Escavações Manuais | D13: M3 | E13: 6.94 | F13: 65.66 | G13: ='BDI 20,34%'!$C$26 -> 0.2034 | H13: =ROUND(((F13*G13)+F13),2) -> 79.02 | I13: =IF(ISERR(ROUND((E13*H13),2)),"",ROUND((E13*H13),2)) -> 548.4 | J13: 93358 | K13: SINAPI
B14: 3.2 | C14: Forma de Madeira para Concreto
B15: 3.2.1 | C15: Forma de Madeira para Concreto, (material e mão-de-obra para fabricação, montagem e desforma) - Sapatas e Pilares de Fundação | D15: M2 | E15: 18.65 | F15: 136.68 | G15: ='BDI 20,34%'!$C$26 -> 0.2034 | H15: =ROUND(((F15*G15)+F15),2) -> 164.48 | I15: 3067.55 | J15: 96535 | K15: SINAPI
B16: 3.2.2 | C16: Forma de Madeira para Concreto, (material e mão-de-obra para fabricação, montagem e desforma) - Vigas Baldrame | D16: M2 | E16: 46.78 | F16: 66.55 | G16: ='BDI 20,34%'!$C$26 -> 0.2034 | H16: =ROUND(((F16*G16)+F16),2) -> 80.09 | I16: 3746.61 | J16: 96536 | K16: SINAPI
B17: 3.3 | C17: Armaduras
B18: 3.3.1 | C18: Armadura CA-60 - 5.0mm (fornecimento, corte, dobra e colocação) | D18: KG | E18: 56.6 | F18: 12.83 | G18: ='BDI 20,34%'!$C$26 -> 0.2034 | H18: =ROUND(((F18*G18)+F18),2) -> 15.44 | I18: 873.9 | J18: 96543 | K18: SINAPI
B19: 3.3.2 | C19: Armadura CA-50 - 8.0mm (fornecimento, corte, dobra e colocação) | D19: KG | E19: 74.9 | F19: 10.06 | G19: ='BDI 20,34%'!$C$26 -> 0.2034 | H19: =ROUND(((F19*G19)+F19),2) -> 12.11 | I19: 907.04 | J19: 96545 | K19: SINAPI
B20: 3.3.3 | C20: Armadura CA-50 - 10.0mm (fornecimento, corte, dobra e colocação) | D20: KG | E20: 186.6 | F20: 8.14 | G20: ='BDI 20,34%'!$C$26 -> 0.2034 | H20: =ROUND(((F20*G20)+F20),2) -> 9.8 | I20: 1828.68 | J20: 96546 | K20: SINAPI
B21: 3.4 | C21: Concreto
B22: 3.4.1 | C22: Concreto Feito no Local, FCK=25MPA - Sapatas e Pilares de Fundação | D22: M3 | E22: 2.57 | F22: 328.57 | G22: ='BDI 20,34%'!$C$26 -> 0.2034 | H22: =ROUND(((F22*G22)+F22),2) -> 395.4 | I22: 1016.18 | J22: 94965 | K22: SINAPI
B23: 3.4.2 | C23: Concreto Feito no Local, FCK=25MPA - Vigas Baldrame | D23: M3 | E23: 2.79 | F23: 328.57 | G23: ='BDI 20,34%'!$C$26 -> 0.2034 | H23: =ROUND(((F23*G23)+F23),2) -> 395.4 | I23: 1103.17 | J23: 94965 | K23: SINAPI
B24: 3.5 | C24: Impermeabilização com Manta Asfáltica e=3mm, incluindo Emulsão Asfáltica | D24: M2 | E24: 15.54 | F24: 66.23 | G24: ='BDI 20,34%'!$C$26 -> 0.2034 | H24: =ROUND(((F24*G24)+F24),2) -> 79.7 | I24: 1238.54 | J24: 98546 | K24: SINAPI
B25: 4 | C25: SUPRAESTRUTURA | H25: ∑ | I25: =SUBTOTAL(9,I26:I36) -> 12806.45
B26: 4.1 | C26: Forma de Madeira para Concreto
B27: 4.1.1 | C27: Forma de Madeira Serrada para Concreto, (material e mão-de-obra para fabricação, montagem e desforma) - Pilares | D27: M2 | E27: 31.68 | F27: 106.56 | G27: ='BDI 20,34%'!$C$26 -> 0.2034 | H27: =ROUND(((F27*G27)+F27),2) -> 128.23 | I27: =IF(ISERR(ROUND((E27*H27),2)),"",ROUND((E27*H27),2)) -> 4062.33 | J27: 92412 | K27: SINAPI
B28: 4.1.2 | C28: Forma de Madeira Serrada para Concreto, (material e mão-de-obra para fabricação, montagem e desforma) - Vigas | D28: M2 | E28: 28.58 | F28: 111.88 | G28: ='BDI 20,34%'!$C$26 -> 0.2034 | H28: =ROUND(((F28*G28)+F28),2) -> 134.64 | I28: =IF(ISERR(ROUND((E28*H28),2)),"",ROUND((E28*H28),2)) -> 3848.01 | J28: 92448 | K28: SINAPI
B29: 4.2 | C29: Armaduras
B30: 4.2.1 | C30: Armadura CA-60 - 5.0MM (fornecimento, corte, dobra e colocação) | D30: KG | E30: 84.5 | F30: 12.97 | G30: ='BDI 20,34%'!$C$26 -> 0.2034 | H30: =ROUND(((F30*G30)+F30),2) -> 15.61 | I30: 1319.05 | J30: 92775 | K30: SINAPI
B31: 4.2.2 | C31: Armadura CA-50 - 8.0MM (fornecimento, corte, dobra e colocação) | D31: KG | E31: 78.3 | F31: 10.06 | G31: ='BDI 20,34%'!$C$26 -> 0.2034 | H31: =ROUND(((F31*G31)+F31),2) -> 12.11 | I31: 948.21 | J31: 92777 | K31: SINAPI
B32: 4.2.3 | C32: Armadura CA-50 - 10.0MM (fornecimento, corte, dobra e colocação) | D32: KG | E32: 131.8 | F32: 8.08 | G32: ='BDI 20,34%'!$C$26 -> 0.2034 | H32: =ROUND(((F32*G32)+F32),2) -> 9.72 | I32: 1281.1 | J32: 92778 | K32: SINAPI
B33: 4.2.4 | C33: Armadura CA-50 - 12.5MM (fornecimento, corte, dobra e colocação) | D33: KG | E33: 15.9 | F33: 7 | G33: ='BDI 20,34%'!$C$26 -> 0.2034 | H33: =ROUND(((F33*G33)+F33),2) -> 8.42 | I33: 133.88 | J33: 92779 | K33: SINAPI
B34: 4.3 | C34: Concreto
B35: 4.3.1 | C35: Concreto Feito no Local, FCK=25MPA - Pilares | D35: M3 | E35: 1.51 | F35: 328.57 | G35: ='BDI 20,34%'!$C$26 -> 0.2034 | H35: =ROUND(((F35*G35)+F35),2) -> 395.4 | I35: 597.05 | J35: 94965 | K35: SINAPI
B36: 4.3.2 | C36: Concreto Feito no Local, FCK=25MPA - Vigas | D36: M3 | E36: 1.56 | F36: 328.57 | G36: ='BDI 20,34%'!$C$26 -> 0.2034 | H36: =ROUND(((F36*G36)+F36),2) -> 395.4 | I36: 616.82 | J36: 94965 | K36: SINAPI
B37: 5 | C37: FECHAMENTOS | H37: ∑ | I37: =SUBTOTAL(9,I38:I39) -> 8796.53
B38: 5.1 | C38: Alvenaria de Tijolos Cerâmicos Furados, e=14cm (17cm acabada) | D38: M2 | E38: 85.29 | F38: 74.45 | G38: ='BDI 20,34%'!$C$26 -> 0.2034 | H38: =ROUND(((F38*G38)+F38),2) -> 89.59 | I38: =IF(ISERR(ROUND((E38*H38),2)),"",ROUND((E38*H38),2)) -> 7641.13 | J38: CED012 | K38: COMPOSIÇÃO
B39: 5.2 | C39: Vergas e Contravergas, moldadas no local, h=20cm (incluso Fôrmas, Concreto e Armadura) | D39: M | E39: 19.18 | F39: 50.06 | G39: ='BDI 20,34%'!$C$26 -> 0.2034 | H39: =ROUND(((F39*G39)+F39),2) -> 60.24 | I39: =IF(ISERR(ROUND((E39*H39),2)),"",ROUND((E39*H39),2)) -> 1155.4 | J39: 93188 | K39: SINAPI
B40: 6 | C40: COBERTURA | H40: ∑ | I40: =SUBTOTAL(9,I41:I47) -> 12179.83
B41: 6.1 | C41: Estrutura de Madeira para Cobertura
B42: 6.1.1 | C42: Estrutura em Madeira Aparelhada para Telha Cerâmica, Composta por Ripas, Caibros e Terças | D42: M2 | E42: 70.78 | F42: 73.48 | G42: ='BDI 20,34%'!$C$26 -> 0.2034 | H42: =ROUND(((F42*G42)+F42),2) -> 88.43 | I42: =IF(ISERR(ROUND((E42*H42),2)),"",ROUND((E42*H42),2)) -> 6259.08 | J42: 92539 | K42: SINAPI
B43: 6.2 | C43: Telhamento Cerâmico
B44: 6.2.1 | C44: Telha Cerâmica tipo Portuguesa, Esmaltada (fornecimento e instalação) (inclui acessórios - Meia Telha e Cunhas) | D44: M2 | E44: 70.78 | F44: 46.71 | G44: ='BDI 20,34%'!$C$26 -> 0.2034 | H44: =ROUND(((F44*G44)+F44),2) -> 56.21 | I44: =IF(ISERR(ROUND((E44*H44),2)),"",ROUND((E44*H44),2)) -> 3978.54 | J44: 94195 | K44: SINAPI
B45: 6.2.2 | C45: Cumeeiras para Telha Cerâmica (fornecimento e instalação) | D45: M | E45: 9.88 | F45: 33.19 | G45: ='BDI 20,34%'!$C$26 -> 0.2034 | H45: =ROUND(((F45*G45)+F45),2) -> 39.94 | I45: 394.61 | J45: 94219 | K45: SINAPI
B46: 6.3 | C46: Calhas e Rufos
B47: 6.3.1 | C47: Calhas em Chapa em Aço Galvanizado, em Chapa 24 (e=0,65mm), desenvolvimento 50cm | D47: M | E47: 19.76 | F47: 65.08 | G47: ='BDI 20,34%'!$C$26 -> 0.2034 | H47: =ROUND(((F47*G47)+F47),2) -> 78.32 | I47: =IF(ISERR(ROUND((E47*H47),2)),"",ROUND((E47*H47),2)) -> 1547.6 | J47: 94228 | K47: SINAPI
B48: 7 | C48: PISO | H48: ∑ | I48: =SUBTOTAL(9,I49:I55) -> 5647.79
B49: 7.1 | C49: Regularização e Apiloamento Manual | D49: M2 | E49: 50.08 | F49: 8.3 | G49: ='BDI 20,34%'!$C$26 -> 0.2034 | H49: =ROUND(((F49*G49)+F49),2) -> 9.99 | I49: =IF(ISERR(ROUND((E49*H49),2)),"",ROUND((E49*H49),2)) -> 500.3 | J49: CED003 | K49: COMPOSIÇÃO
B50: 7.2 | C50: Lastro de Brita Graduada para Piso de Concreto, e=20cm | D50: M3 | E50: 10.02 | F50: 82.22 | G50: ='BDI 20,34%'!$C$26 -> 0.2034 | H50: 98.94 | I50: 991.38 | J50: 88549 | K50: SINAPI
B51: 7.3 | C51: Lona 200 Micras (fornecimento e instalação) | D51: M2 | E51: 50.08 | F51: 5.2 | G51: ='BDI 20,34%'!$C$26 -> 0.2034 | H51: 6.26 | I51: 313.5 | J51: 68053 | K51: SINAPI
B52: 7.4 | C52: Tela Soldada Q-92 - Aço CA-60 4.2mm - Malha 15x15cm (fornecimento, corte e instalação) | D52: M2 | E52: 50.08 | F52: 10.49 | G52: ='BDI 20,34%'!$C$26 -> 0.2034 | H52: 12.62 | I52: =IF(ISERR(ROUND((E52*H52),2)),"",ROUND((E52*H52),2)) -> 632.01 | J52: 85662 | K52: SINAPI
B53: 7.5 | C53: Forma de Madeira Serrada para Concreto, (material e mão-de-obra para fabricação, montagem e desforma) | D53: M2 | E53: 2.73 | F53: 66.55 | G53: ='BDI 20,34%'!$C$26 -> 0.2034 | H53: 80.09 | I53: =IF(ISERR(ROUND((E53*H53),2)),"",ROUND((E53*H53),2)) -> 218.65 | J53: 96536 | K53: SINAPI
B54: 7.6 | C54: Piso em Concreto 25 Mpa , e=7cm | D54: M3 | E54: 3.51 | F54: 335.33 | G54: ='BDI 20,34%'!$C$26 -> 0.2034 | H54: 403.54 | I54: =IF(ISERR(ROUND((E54*H54),2)),"",ROUND((E54*H54),2)) -> 1416.43 | J54: CED100 | K54: COMPOSIÇÃO
B55: 7.7 | C55: Contrapiso/Regularização em Argamassa, e=2cm | D55: M2 | E55: 50.08 | F55: 26.14 | G55: ='BDI 20,34%'!$C$26 -> 0.2034 | H55: 31.46 | I55: =IF(ISERR(ROUND((E55*H55),2)),"",ROUND((E55*H55),2)) -> 1575.52 | J55: 87620 | K55: SINAPI
B56: 8 | C56: INSTALAÇÕES ELÉTRICAS | H56: ∑ | I56: =SUBTOTAL(9,I57:I75) -> 10388.61
B57: 8.1 | C57: Ramal
B58: 8.1.1 | C58: Caixa de Passagem Padrão CELESC, 65x41x70cm (fornecimento e instalação) | D58: UN | E58: 3 | F58: 93.94 | G58: ='BDI 20,34%'!$C$26 -> 0.2034 | H58: =ROUND(((F58*G58)+F58),2) -> 113.05 | I58: =IF(ISERR(ROUND((E58*H58),2)),"",ROUND((E58*H58),2)) -> 339.15 | J58: CEL010 | K58: COMPOSIÇÃO
B59: 8.1.2 | C59: Eletroduto PEAD 40mm - 1 1/2" (fornecimento, escavação, assentamento e reaterro) | D59: M | E59: 65 | F59: 25.41 | G59: ='BDI 20,34%'!$C$26 -> 0.2034 | H59: 30.58 | I59: =IF(ISERR(ROUND((E59*H59),2)),"",ROUND((E59*H59),2)) -> 1987.7 | J59: CEL006 | K59: COMPOSIÇÃO
B60: 8.1.3 | C60: Caixa de Passagem 30x30x40, Fundo de Brita e Tampa (fornecimento e instalação) | D60: UN | E60: 1 | F60: 162.96 | G60: ='BDI 20,34%'!$C$26 -> 0.2034 | H60: 196.11 | I60: =IF(ISERR(ROUND((E60*H60),2)),"",ROUND((E60*H60),2)) -> 196.11 | J60: 83446 | K60: SINAPI
B61: 8.1.4 | C61: Cabo de Cobre Isolado 10mm2 - 1KV | D61: M | E61: 370 | F61: 6.33 | G61: ='BDI 20,34%'!$C$26 -> 0.2034 | H61: 7.62 | I61: =IF(ISERR(ROUND((E61*H61),2)),"",ROUND((E61*H61),2)) -> 2819.4 | J61: 92980 | K61: SINAPI
B62: 8.1.5 | C62: Haste de Aterramento em Aço de 2,4m e Ø5/8" | D62: UN | E62: 1 | F62: 51.09 | G62: ='BDI 20,34%'!$C$26 -> 0.2034 | H62: 61.48 | I62: =IF(ISERR(ROUND((E62*H62),2)),"",ROUND((E62*H62),2)) -> 61.48 | J62: 96985 | K62: SINAPI
B63: 8.1.6 | C63: Tampa de Ferro Fundido, 65x41cm (fornecimento e instalação) | D63: UN | E63: 3 | F63: 224.86 | G63: ='BDI 20,34%'!$C$26 -> 0.2034 | H63: 270.6 | I63: =IF(ISERR(ROUND((E63*H63),2)),"",ROUND((E63*H63),2)) -> 811.8 | J63: 84798 | K63: SINAPI
B64: 8.2 | C64: Quadro de Distribuição
B65: 8.2.1 | C65: Quadro de Distribuição de Energia para 18 Disjuntores Monopolares, com Barramento Trifasico e Neutro (Fornecimento e Instalação) | D65: UN | E65: 1 | F65: 450.27 | G65: ='BDI 20,34%'!$C$26 -> 0.2034 | H65: =ROUND(((F65*G65)+F65),2) -> 541.85 | I65: =IF(ISERR(ROUND((E65*H65),2)),"",ROUND((E65*H65),2)) -> 541.85 | J65: 74131/4 | K65: SINAPI
B66: 8.2.2 | C66: Disjuntor Monopolar 10A - Din (Fornecimento e Instalação) | D66: UN | E66: 7 | F66: 11 | G66: ='BDI 20,34%'!$C$26 -> 0.2034 | H66: =ROUND(((F66*G66)+F66),2) -> 13.24 | I66: =IF(ISERR(ROUND((E66*H66),2)),"",ROUND((E66*H66),2)) -> 92.68 | J66: 93653 | K66: SINAPI
B67: 8.2.3 | C67: Disjuntor Monopolar 16A - Din (Fornecimento e Instalação) | D67: UN | E67: 1 | F67: 11.68 | G67: ='BDI 20,34%'!$C$26 -> 0.2034 | H67: =ROUND(((F67*G67)+F67),2) -> 14.06 | I67: =IF(ISERR(ROUND((E67*H67),2)),"",ROUND((E67*H67),2)) -> 14.06 | J67: 93654 | K67: SINAPI
B68: 8.2.4 | C68: Disjuntor Monopolar 40A - Din (Fornecimento e Instalação) | D68: UN | E68: 1 | F68: 20.74 | G68: ='BDI 20,34%'!$C$26 -> 0.2034 | H68: =ROUND(((F68*G68)+F68),2) -> 24.96 | I68: =IF(ISERR(ROUND((E68*H68),2)),"",ROUND((E68*H68),2)) -> 24.96 | J68: 93658 | K68: SINAPI
B69: 8.2.5 | C69: Disjuntor Diferencial Residual (DR) 25A (fornecimento e instalação) | D69: UN | E69: 1 | F69: 142.07 | G69: ='BDI 20,34%'!$C$26 -> 0.2034 | H69: =ROUND(((F69*G69)+F69),2) -> 170.97 | I69: =IF(ISERR(ROUND((E69*H69),2)),"",ROUND((E69*H69),2)) -> 170.97 | J69: CEL013 | K69: COMPOSIÇÃO
B70: 8.3 | C70: Iluminação
B71: 8.3.1 | C71: Ponto de Iluminação (Caixas, Eletroduto, Cabos, Interruptor) (fornecimento e instalação) | D71: UN | E71: 9 | F71: 135.08 | G71: ='BDI 20,34%'!$C$26 -> 0.2034 | H71: =ROUND(((F71*G71)+F71),2) -> 162.56 | I71: =IF(ISERR(ROUND((E71*H71),2)),"",ROUND((E71*H71),2)) -> 1463.04 | J71: 93128 | K71: SINAPI
B72: 8.3.2 | C72: Luminária Calha, com 2 Lâmpadas de led (fornecimento e instalação) | D72: UN | E72: 5 | F72: 65.47 | G72: ='BDI 20,34%'!$C$26 -> 0.2034 | H72: =ROUND(((F72*G72)+F72),2) -> 78.79 | I72: =IF(ISERR(ROUND((E72*H72),2)),"",ROUND((E72*H72),2)) -> 393.95 | J72: 97585 | K72: SINAPI
B73: 8.3.3 | C73: Luminária Plafon, com Lâmpada LED (fornecimento e instalação) | D73: UN | E73: 4 | F73: 105.65 | G73: ='BDI 20,34%'!$C$26 -> 0.2034 | H73: =ROUND(((F73*G73)+F73),2) -> 127.14 | I73: =IF(ISERR(ROUND((E73*H73),2)),"",ROUND((E73*H73),2)) -> 508.56 | J73: 97592 | K73: SINAPI
B74: 8.4 | C74: Tomadas
B75: 8.4.1 | C75: Ponto de Tomada 2P+T - 10A (Caixa, Eletroduto, Cabos e Tomada com Placa) (fornecimento e instalação) | D75: UN | E75: 5 | F75: 160.03 | G75: ='BDI 20,34%'!$C$26 -> 0.2034 | H75: =ROUND(((F75*G75)+F75),2) -> 192.58 | I75: =IF(ISERR(ROUND((E75*H75),2)),"",ROUND((E75*H75),2)) -> 962.9 | J75: 93141 | K75: SINAPI
B76: 9 | C76: REDE HIDRÁULICA | H76: ∑ | I76: =SUBTOTAL(9,I77:I131) -> 3156.67
B77: 9.1 | C77: Alimentação
B78: 9.1.1 | C78: Caixa d'Água
B79: 9.1.1.1 | C79: 500 Litros - Polietileno | D79: UN | E79: 3 | F79: 168.68 | G79: ='BDI 20,34%'!$C$26 -> 0.2034 | H79: =ROUND(((F79*G79)+F79),2) -> 202.99 | I79: =IF(ISERR(ROUND((E79*H79),2)),"",ROUND((E79*H79),2)) -> 608.97 | J79: CHD200 | K79: COMPOSIÇÃO
B80: 9.1.2 | C80: Torneira tipo Bóia
B81: 9.1.2.1 | C81: 3/4" | D81: UN | E81: 1 | F81: 21.13 | G81: ='BDI 20,34%'!$C$26 -> 0.2034 | H81: =ROUND(((F81*G81)+F81),2) -> 25.43 | I81: =IF(ISERR(ROUND((E81*H81),2)),"",ROUND((E81*H81),2)) -> 25.43 | J81: 94796 | K81: SINAPI
B82: 9.1.3 | C82: Válvula de Esfera - PVC Soldável
B83: 9.1.3.1 | C83: 3/4" | D83: UN | E83: 1 | F83: 19.49 | G83: ='BDI 20,34%'!$C$26 -> 0.2034 | H83: =ROUND(((F83*G83)+F83),2) -> 23.45 | I83: =IF(ISERR(ROUND((E83*H83),2)),"",ROUND((E83*H83),2)) -> 23.45 | J83: 94489 | K83: SINAPI
B84: 9.1.4 | C84: Joelho 90° Soldável
B85: 9.1.4.1 | C85: 25mm | D85: UN | E85: 6 | F85: 4.91 | G85: ='BDI 20,34%'!$C$26 -> 0.2034 | H85: =ROUND(((F85*G85)+F85),2) -> 5.91 | I85: =IF(ISERR(ROUND((E85*H85),2)),"",ROUND((E85*H85),2)) -> 35.46 | J85: 89408 | K85: SINAPI
B86: 9.1.5 | C86: Tubos PVC Soldável
B87: 9.1.5.1 | C87: 25mm | D87: M | E87: 12.09 | F87: 7.2 | G87: ='BDI 20,34%'!$C$26 -> 0.2034 | H87: =ROUND(((F87*G87)+F87),2) -> 8.66 | I87: =IF(ISERR(ROUND((E87*H87),2)),"",ROUND((E87*H87),2)) -> 104.7 | J87: 89402 | K87: SINAPI
B88: 9.2 | C88: Metais - Registros
B89: 9.2.1 | C89: Registro de Gaveta com Canopla Cromada
B90: 9.2.1.1 | C90: 3/4" | D90: UN | E90: 6 | F90: 62.59 | G90: ='BDI 20,34%'!$C$26 -> 0.2034 | H90: =ROUND(((F90*G90)+F90),2) -> 75.32 | I90: =IF(ISERR(ROUND((E90*H90),2)),"",ROUND((E90*H90),2)) -> 451.92 | J90: 89987 | K90: SINAPI
B91: 9.2.1.2 | C91: 1.1/2" | D91: UN | E91: 1 | F91: 123.86 | G91: ='BDI 20,34%'!$C$26 -> 0.2034 | H91: =ROUND(((F91*G91)+F91),2) -> 149.05 | I91: 149.05 | J91: 94794 | K91: SINAPI
B92: 9.2.2 | C92: Válvula de Descarga Baixa Pressão, com Acabamento em Metal Cromado
B93: 9.2.2.1 | C93: 1.1/2" | D93: UN | E93: 1 | F93: 185.16 | G93: ='BDI 20,34%'!$C$26 -> 0.2034 | H93: =ROUND(((F93*G93)+F93),2) -> 222.82 | I93: =IF(ISERR(ROUND((E93*H93),2)),"",ROUND((E93*H93),2)) -> 222.82 | J93: 99635 | K93: SINAPI
B94: 9.3 | C94: Água Fria
B95: 9.3.1 | C95: Válvula de Esfera - PVC Soldável
B96: 9.3.1.1 | C96: 1" | D96: UN | E96: 7 | F96: 33 | G96: ='BDI 20,34%'!$C$26 -> 0.2034 | H96: =ROUND(((F96*G96)+F96),2) -> 39.71 | I96: =IF(ISERR(ROUND((E96*H96),2)),"",ROUND((E96*H96),2)) -> 277.97 | J96: 94490 | K96: SINAPI
B97: 9.3.1.2 | C97: 1.1/2" | D97: UN | E97: 1 | F97: 46.64 | G97: ='BDI 20,34%'!$C$26 -> 0.2034 | H97: =ROUND(((F97*G97)+F97),2) -> 56.13 | I97: 56.13 | J97: 94492 | K97: SINAPI
B98: 9.3.2 | C98: Adaptador Soldável com Flange para Caixa d'Água
B99: 9.3.2.1 | C99: 32mm - 1" | D99: UN | E99: 8 | F99: 16.27 | G99: ='BDI 20,34%'!$C$26 -> 0.2034 | H99: =ROUND(((F99*G99)+F99),2) -> 19.58 | I99: =IF(ISERR(ROUND((E99*H99),2)),"",ROUND((E99*H99),2)) -> 156.64 | J99: 94704 | K99: SINAPI
B100: 9.3.2.2 | C100: 50mm - 1.1/2" | D100: UN | E100: 1 | F100: 28.52 | G100: ='BDI 20,34%'!$C$26 -> 0.2034 | H100: =ROUND(((F100*G100)+F100),2) -> 34.32 | I100: 34.32 | J100: 94706 | K100: SINAPI
B101: 9.3.3 | C101: Adaptador Soldável Curto com Bolsa e Rosca para Registro
B102: 9.3.3.1 | C102: 25mm - 3/4" | D102: UN | E102: 12 | F102: 3.79 | G102: ='BDI 20,34%'!$C$26 -> 0.2034 | H102: =ROUND(((F102*G102)+F102),2) -> 4.56 | I102: =IF(ISERR(ROUND((E102*H102),2)),"",ROUND((E102*H102),2)) -> 54.72 | J102: 89429 | K102: SINAPI
B103: 9.3.3.2 | C103: 50mm - 1.1/2" | D103: UN | E103: 2 | F103: 7.8 | G103: ='BDI 20,34%'!$C$26 -> 0.2034 | H103: =ROUND(((F103*G103)+F103),2) -> 9.39 | I103: 18.78 | J103: 89596 | K103: SINAPI
B104: 9.3.4 | C104: Bucha de Redução Soldável Curta
B105: 9.3.4.1 | C105: 32mm - 25mm | D105: UN | E105: 3 | F105: 5.03 | G105: ='BDI 20,34%'!$C$26 -> 0.2034 | H105: =ROUND(((F105*G105)+F105),2) -> 6.05 | I105: =IF(ISERR(ROUND((E105*H105),2)),"",ROUND((E105*H105),2)) -> 18.15 | J105: CHD007 | K105: COMPOSIÇÃO
B106: 9.3.5 | C106: Joelho 45° Soldável
B107: 9.3.5.1 | C107: 25mm | D107: UN | E107: 1 | F107: 5.41 | G107: ='BDI 20,34%'!$C$26 -> 0.2034 | H107: =ROUND(((F107*G107)+F107),2) -> 6.51 | I107: =IF(ISERR(ROUND((E107*H107),2)),"",ROUND((E107*H107),2)) -> 6.51 | J107: 89409 | K107: SINAPI
B108: 9.3.5.2 | C108: 32mm | D108: UN | E108: 1 | F108: 8.19 | G108: ='BDI 20,34%'!$C$26 -> 0.2034 | H108: =ROUND(((F108*G108)+F108),2) -> 9.86 | I108: 9.86 | J108: 89414 | K108: SINAPI
B109: 9.3.5.3 | C109: 50mm | D109: UN | E109: 1 | F109: 11.2 | G109: ='BDI 20,34%'!$C$26 -> 0.2034 | H109: =ROUND(((F109*G109)+F109),2) -> 13.48 | I109: 13.48 | J109: 89502 | K109: SINAPI
B110: 9.3.6 | C110: Joelho 90° Soldável
B111: 9.3.6.1 | C111: 25mm | D111: UN | E111: 15 | F111: 4.91 | G111: ='BDI 20,34%'!$C$26 -> 0.2034 | H111: =ROUND(((F111*G111)+F111),2) -> 5.91 | I111: =IF(ISERR(ROUND((E111*H111),2)),"",ROUND((E111*H111),2)) -> 88.65 | J111: 89408 | K111: SINAPI
B112: 9.3.6.2 | C112: 32mm | D112: UN | E112: 1 | F112: 6.79 | G112: ='BDI 20,34%'!$C$26 -> 0.2034 | H112: =ROUND(((F112*G112)+F112),2) -> 8.17 | I112: 8.17 | J112: 89413 | K112: SINAPI
B113: 9.3.6.3 | C113: 50mm | D113: UN | E113: 3 | F113: 10.04 | G113: ='BDI 20,34%'!$C$26 -> 0.2034 | H113: =ROUND(((F113*G113)+F113),2) -> 12.08 | I113: 36.24 | J113: 89501 | K113: SINAPI
B114: 9.3.7 | C114: Tê 90° Soldável
B115: 9.3.7.1 | C115: 25mm | D115: UN | E115: 2 | F115: 5.2 | G115: ='BDI 20,34%'!$C$26 -> 0.2034 | H115: =ROUND(((F115*G115)+F115),2) -> 6.26 | I115: =IF(ISERR(ROUND((E115*H115),2)),"",ROUND((E115*H115),2)) -> 12.52 | J115: 89617 | K115: SINAPI
B116: 9.3.7.2 | C116: 32mm | D116: UN | E116: 1 | F116: 8.22 | G116: ='BDI 20,34%'!$C$26 -> 0.2034 | H116: =ROUND(((F116*G116)+F116),2) -> 9.89 | I116: 9.89 | J116: 89620 | K116: SINAPI
B117: 9.3.8 | C117: Joelho de Redução 90° Soldável
B118: 9.3.8.1 | C118: 32mm - 25mm | D118: UN | E118: 3 | F118: 7.01 | G118: ='BDI 20,34%'!$C$26 -> 0.2034 | H118: =ROUND(((F118*G118)+F118),2) -> 8.44 | I118: =IF(ISERR(ROUND((E118*H118),2)),"",ROUND((E118*H118),2)) -> 25.32 | J118: CHD013 | K118: COMPOSIÇÃO
B119: 9.3.9 | C119: Tê de Redução 90° Soldável
B120: 9.3.9.1 | C120: 50mm - 25mm | D120: UN | E120: 2 | F120: 14.64 | G120: ='BDI 20,34%'!$C$26 -> 0.2034 | H120: =ROUND(((F120*G120)+F120),2) -> 17.62 | I120: =IF(ISERR(ROUND((E120*H120),2)),"",ROUND((E120*H120),2)) -> 35.24 | J120: 89627 | K120: SINAPI
B121: 9.3.9.2 | C121: 32mm - 25mm | D121: UN | E121: 1 | F121: 9.53 | G121: ='BDI 20,34%'!$C$26 -> 0.2034 | H121: =ROUND(((F121*G121)+F121),2) -> 11.47 | I121: 11.47 | J121: 89622 | K121: SINAPI
B122: 9.3.10 | C122: Tubos PVC Soldável
B123: 9.3.10.1 | C123: 25mm | D123: M | E123: 27.4 | F123: 7.2 | G123: ='BDI 20,34%'!$C$26 -> 0.2034 | H123: =ROUND(((F123*G123)+F123),2) -> 8.66 | I123: =IF(ISERR(ROUND((E123*H123),2)),"",ROUND((E123*H123),2)) -> 237.28 | J123: 89402 | K123: SINAPI
B124: 9.3.10.2 | C124: 32mm | D124: M | E124: 8.9 | F124: 11.27 | G124: ='BDI 20,34%'!$C$26 -> 0.2034 | H124: =ROUND(((F124*G124)+F124),2) -> 13.56 | I124: 120.68 | J124: 89403 | K124: SINAPI
B125: 9.3.10.3 | C125: 50mm | D125: M | E125: 4.9 | F125: 10.82 | G125: ='BDI 20,34%'!$C$26 -> 0.2034 | H125: =ROUND(((F125*G125)+F125),2) -> 13.02 | I125: 63.8 | J125: 89449 | K125: SINAPI
B126: 9.3.11 | C126: Joelho 90° Soldável com Bucha de Latão
B127: 9.3.11.1 | C127: 25mm - 1/2" | D127: UN | E127: 7 | F127: 10.9 | G127: ='BDI 20,34%'!$C$26 -> 0.2034 | H127: =ROUND(((F127*G127)+F127),2) -> 13.12 | I127: =IF(ISERR(ROUND((E127*H127),2)),"",ROUND((E127*H127),2)) -> 91.84 | J127: 90373 | K127: SINAPI
B128: 9.3.11.2 | C128: 25mm - 3/4" | D128: UN | E128: 3 | F128: 11.64 | G128: ='BDI 20,34%'!$C$26 -> 0.2034 | H128: =ROUND(((F128*G128)+F128),2) -> 14.01 | I128: 42.03 | J128: 89366 | K128: SINAPI
B129: 9.3.12 | C129: Tê 90° Soldável com Bucha de Latão
B130: 9.3.12.1 | C130: 25mm - 1/2" | D130: UN | E130: 6 | F130: 11.81 | G130: ='BDI 20,34%'!$C$26 -> 0.2034 | H130: =ROUND(((F130*G130)+F130),2) -> 14.21 | I130: =IF(ISERR(ROUND((E130*H130),2)),"",ROUND((E130*H130),2)) -> 85.26 | J130: 89441 | K130: SINAPI
B131: 9.3.12.2 | C131: 25mm - 3/4" | D131: UN | E131: 1 | F131: 16.55 | G131: ='BDI 20,34%'!$C$26 -> 0.2034 | H131: =ROUND(((F131*G131)+F131),2) -> 19.92 | I131: 19.92 | J131: 90374 | K131: SINAPI
B132: 10 | C132: REDE SANITÁRIA | H132: ∑ | I132: =SUBTOTAL(9,I133:I200) -> 10454.52
B133: 10.1 | C133: Esgoto
B134: 10.1.1 | C134: Caixa de inspeção
B135: 10.1.1.1 | C135: PVC com Tampa, Ø30cm | D135: UN | E135: 1 | F135: 207.75 | G135: ='BDI 20,34%'!$C$26 -> 0.2034 | H135: =ROUND(((F135*G135)+F135),2) -> 250.01 | I135: =IF(ISERR(ROUND((E135*H135),2)),"",ROUND((E135*H135),2)) -> 250.01 | J135: 74166/1 | K135: SINAPI
B136: 10.1.2 | C136: Caixa sifonada
B137: 10.1.2.1 | C137: 150x150x50 | D137: UN | E137: 4 | F137: 23.86 | G137: ='BDI 20,34%'!$C$26 -> 0.2034 | H137: =ROUND(((F137*G137)+F137),2) -> 28.71 | I137: =IF(ISERR(ROUND((E137*H137),2)),"",ROUND((E137*H137),2)) -> 114.84 | J137: 89707 | K137: SINAPI
B138: 10.1.3 | C138: Curva PVC 90° curta
B139: 10.1.3.1 | C139: 40mm | D139: UN | E139: 11 | F139: 7.7 | G139: ='BDI 20,34%'!$C$26 -> 0.2034 | H139: =ROUND(((F139*G139)+F139),2) -> 9.27 | I139: =IF(ISERR(ROUND((E139*H139),2)),"",ROUND((E139*H139),2)) -> 101.97 | J139: 89728 | K139: SINAPI
B140: 10.1.4 | C140: Joelho PVC 45°
B141: 10.1.4.1 | C141: 40mm | D141: UN | E141: 6 | F141: 5.87 | G141: ='BDI 20,34%'!$C$26 -> 0.2034 | H141: =ROUND(((F141*G141)+F141),2) -> 7.06 | I141: =IF(ISERR(ROUND((E141*H141),2)),"",ROUND((E141*H141),2)) -> 42.36 | J141: 89726 | K141: SINAPI
B142: 10.1.4.2 | C142: 50mm | D142: UN | E142: 3 | F142: 8.72 | G142: ='BDI 20,34%'!$C$26 -> 0.2034 | H142: =ROUND(((F142*G142)+F142),2) -> 10.49 | I142: 31.47 | J142: 89732 | K142: SINAPI
B143: 10.1.4.3 | C143: 75mm | D143: UN | E143: 1 | F143: 14.29 | G143: ='BDI 20,34%'!$C$26 -> 0.2034 | H143: =ROUND(((F143*G143)+F143),2) -> 17.2 | I143: 17.2 | J143: 89739 | K143: SINAPI
B144: 10.1.4.4 | C144: 100mm | D144: UN | E144: 6 | F144: 17.99 | G144: ='BDI 20,34%'!$C$26 -> 0.2034 | H144: =ROUND(((F144*G144)+F144),2) -> 21.65 | I144: 129.9 | J144: 89746 | K144: SINAPI
B145: 10.1.5 | C145: Joelho PVC 90°
B146: 10.1.5.1 | C146: 40mm | D146: UN | E146: 11 | F146: 7.34 | G146: ='BDI 20,34%'!$C$26 -> 0.2034 | H146: =ROUND(((F146*G146)+F146),2) -> 8.83 | I146: =IF(ISERR(ROUND((E146*H146),2)),"",ROUND((E146*H146),2)) -> 97.13 | J146: 89724 | K146: SINAPI
B147: 10.1.5.2 | C147: 50mm | D147: UN | E147: 3 | F147: 8.38 | G147: ='BDI 20,34%'!$C$26 -> 0.2034 | H147: =ROUND(((F147*G147)+F147),2) -> 10.08 | I147: 30.24 | J147: 89731 | K147: SINAPI
B148: 10.1.5.3 | C148: 100mm | D148: UN | E148: 4 | F148: 18.02 | G148: ='BDI 20,34%'!$C$26 -> 0.2034 | H148: =ROUND(((F148*G148)+F148),2) -> 21.69 | I148: 86.76 | J148: 89744 | K148: SINAPI
B149: 10.1.6 | C149: Junção Simples PVC
B150: 10.1.6.1 | C150: 40mm - 40mm | D150: UN | E150: 4 | F150: 9.26 | G150: ='BDI 20,34%'!$C$26 -> 0.2034 | H150: =ROUND(((F150*G150)+F150),2) -> 11.14 | I150: =IF(ISERR(ROUND((E150*H150),2)),"",ROUND((E150*H150),2)) -> 44.56 | J150: 89783 | K150: SINAPI
B151: 10.1.6.2 | C151: 75mm - 50mm | D151: UN | E151: 1 | F151: 19.77 | G151: ='BDI 20,34%'!$C$26 -> 0.2034 | H151: =ROUND(((F151*G151)+F151),2) -> 23.79 | I151: 23.79 | J151: CHD018 | K151: COMPOSIÇÃO
B152: 10.1.6.3 | C152: 100mm - 50mm | D152: UN | E152: 2 | F152: 22.06 | G152: ='BDI 20,34%'!$C$26 -> 0.2034 | H152: =ROUND(((F152*G152)+F152),2) -> 26.55 | I152: 53.1 | J152: CHD019 | K152: COMPOSIÇÃO
B153: 10.1.6.4 | C153: 100mm - 75mm | D153: UN | E153: 1 | F153: 44.46 | G153: ='BDI 20,34%'!$C$26 -> 0.2034 | H153: =ROUND(((F153*G153)+F153),2) -> 53.5 | I153: 53.5 | J153: 89569 | K153: SINAPI
B154: 10.1.6.5 | C154: 100mm - 100mm | D154: UN | E154: 2 | F154: 31.97 | G154: ='BDI 20,34%'!$C$26 -> 0.2034 | H154: =ROUND(((F154*G154)+F154),2) -> 38.47 | I154: 76.94 | J154: 89797 | K154: SINAPI
B155: 10.1.7 | C155: Redução Excêntrica PVC
B156: 10.1.7.1 | C156: 75mm x 50mm | D156: UN | E156: 1 | F156: 9.78 | G156: ='BDI 20,34%'!$C$26 -> 0.2034 | H156: =ROUND(((F156*G156)+F156),2) -> 11.77 | I156: =IF(ISERR(ROUND((E156*H156),2)),"",ROUND((E156*H156),2)) -> 11.77 | J156: 89549 | K156: SINAPI
B157: 10.1.8 | C157: Tê Sanitário PVC
B158: 10.1.8.1 | C158: 50mm - 50mm | D158: UN | E158: 2 | F158: 14.27 | G158: ='BDI 20,34%'!$C$26 -> 0.2034 | H158: =ROUND(((F158*G158)+F158),2) -> 17.17 | I158: =IF(ISERR(ROUND((E158*H158),2)),"",ROUND((E158*H158),2)) -> 34.34 | J158: 89784 | K158: SINAPI
B159: 10.1.8.2 | C159: 75mm - 50mm | D159: UN | E159: 1 | F159: 34.29 | G159: ='BDI 20,34%'!$C$26 -> 0.2034 | H159: =ROUND(((F159*G159)+F159),2) -> 41.26 | I159: 41.26 | J159: CHD020 | K159: COMPOSIÇÃO
B160: 10.1.9 | C160: Tubo Rígido com Ponta Lisa
B161: 10.1.9.1 | C161: 40mm | D161: M | E161: 19.49 | F161: 15.42 | G161: ='BDI 20,34%'!$C$26 -> 0.2034 | H161: =ROUND(((F161*G161)+F161),2) -> 18.56 | I161: =IF(ISERR(ROUND((E161*H161),2)),"",ROUND((E161*H161),2)) -> 361.73 | J161: 89711 | K161: SINAPI
B162: 10.1.9.2 | C162: 50mm - 2" | D162: M | E162: 4.5 | F162: 22.21 | G162: ='BDI 20,34%'!$C$26 -> 0.2034 | H162: =ROUND(((F162*G162)+F162),2) -> 26.73 | I162: 120.29 | J162: 89712 | K162: SINAPI
B163: 10.1.9.3 | C163: 75mm - 3" | D163: M | E163: 1.28 | F163: 33.73 | G163: ='BDI 20,34%'!$C$26 -> 0.2034 | H163: =ROUND(((F163*G163)+F163),2) -> 40.59 | I163: 51.96 | J163: 89713 | K163: SINAPI
B164: 10.1.9.4 | C164: 100mm - 4" | D164: M | E164: 8.71 | F164: 43.71 | G164: ='BDI 20,34%'!$C$26 -> 0.2034 | H164: =ROUND(((F164*G164)+F164),2) -> 52.6 | I164: 458.15 | J164: 89714 | K164: SINAPI
B165: 10.2 | C165: Ventilação
B166: 10.2.1 | C166: Joelho PVC 90°
B167: 10.2.1.1 | C167: 50mm | D167: UN | E167: 1 | F167: 8.38 | G167: ='BDI 20,34%'!$C$26 -> 0.2034 | H167: =ROUND(((F167*G167)+F167),2) -> 10.08 | I167: =IF(ISERR(ROUND((E167*H167),2)),"",ROUND((E167*H167),2)) -> 10.08 | J167: 89731 | K167: SINAPI
B168: 10.2.2 | C168: Tê Sanitário PVC
B169: 10.2.2.1 | C169: 50mm - 50mm | D169: UN | E169: 1 | F169: 14.27 | G169: ='BDI 20,34%'!$C$26 -> 0.2034 | H169: =ROUND(((F169*G169)+F169),2) -> 17.17 | I169: =IF(ISERR(ROUND((E169*H169),2)),"",ROUND((E169*H169),2)) -> 17.17 | J169: 89784 | K169: SINAPI
B170: 10.2.3 | C170: Tubo Rígido com Ponta Lisa
B171: 10.2.3.1 | C171: 50mm - 2" | D171: M | E171: 7.48 | F171: 22.21 | G171: ='BDI 20,34%'!$C$26 -> 0.2034 | H171: =ROUND(((F171*G171)+F171),2) -> 26.73 | I171: =IF(ISERR(ROUND((E171*H171),2)),"",ROUND((E171*H171),2)) -> 199.94 | J171: 89712 | K171: SINAPI
B172: 10.3 | C172: Sistema de Tratamento
B173: 10.3.1 | C173: Fossa Séptica Pré-Moldada, Ø1,50m, h=2,00m
B174: 10.3.1.1 | C174: Tubo de Concreto Ø1,50m, com Junta Rígida de Argamassa (incluso escavação, carga e transporte) | D174: M | E174: 2 | F174: 636.82 | G174: ='BDI 20,34%'!$C$26 -> 0.2034 | H174: =ROUND(((F174*G174)+F174),2) -> 766.35 | I174: =IF(ISERR(ROUND((E174*H174),2)),"",ROUND((E174*H174),2)) -> 1532.7 | J174: 92818 | K174: SINAPI
B175: 10.3.1.2 | C175: Tampa Pré-Moldada Ø1,55m | D175: M3 | E175: 0.09 | F175: 2190.42 | G175: ='BDI 20,34%'!$C$26 -> 0.2034 | H175: 2635.95 | I175: =IF(ISERR(ROUND((E175*H175),2)),"",ROUND((E175*H175),2)) -> 237.24 | J175: 97739 | K175: SINAPI
B176: 10.3.1.3 | C176: Concreto Usinado (fornecimento, lançamento, adensamento e bombeado) FCK=25MPA | D176: M3 | E176: 0.2 | F176: 379.03 | G176: ='BDI 20,34%'!$C$26 -> 0.2034 | H176: 456.12 | I176: 91.22 | J176: 92722 | K176: SINAPI
B177: 10.3.1.4 | C177: Aço CA-50 - 10.0MM (fornecimento, corte, colocação) | D177: KG | E177: 31.45 | F177: 7.09 | G177: ='BDI 20,34%'!$C$26 -> 0.2034 | H177: 8.53 | I177: 268.27 | J177: 92787 | K177: SINAPI
B178: 10.3.1.5 | C178: Impermeabilização com Argamassa Polimérica Bicomponente Semiflexível, 03 Demãos Cruzadas | D178: M2 | E178: 10.25 | F178: 27.52 | G178: ='BDI 20,34%'!$C$26 -> 0.2034 | H178: 33.12 | I178: =IF(ISERR(ROUND((E178*H178),2)),"",ROUND((E178*H178),2)) -> 339.48 | J178: 98555 | K178: SINAPI
B179: 10.3.1.6 | C179: Tubo PVC, 100mm | D179: M | E179: 1.3 | F179: 43.71 | G179: ='BDI 20,34%'!$C$26 -> 0.2034 | H179: 52.6 | I179: =IF(ISERR(ROUND((E179*H179),2)),"",ROUND((E179*H179),2)) -> 68.38 | J179: 89714 | K179: SINAPI
B180: 10.3.1.7 | C180: Tê PVC, 100mm x 100mm | D180: UN | E180: 2 | F180: 28.79 | G180: ='BDI 20,34%'!$C$26 -> 0.2034 | H180: 34.65 | I180: =IF(ISERR(ROUND((E180*H180),2)),"",ROUND((E180*H180),2)) -> 69.3 | J180: 89796 | K180: SINAPI
B181: 10.3.1.8 | C181: Tubo PVC, 150mm | D181: M | E181: 2 | F181: 39.42 | G181: ='BDI 20,34%'!$C$26 -> 0.2034 | H181: 47.44 | I181: =IF(ISERR(ROUND((E181*H181),2)),"",ROUND((E181*H181),2)) -> 94.88 | J181: 89849 | K181: SINAPI
B182: 10.3.2 | C182: Filtro Anaeróbio Pré-Moldado, Ø1,50m, h=1,80m
B183: 10.3.2.1 | C183: Tubo de Concreto Ø1,50m, com Junta Rígida de Argamassa (incluso escavação, carga e transporte) | D183: M | E183: 1.8 | F183: 636.82 | G183: ='BDI 20,34%'!$C$26 -> 0.2034 | H183: =ROUND(((F183*G183)+F183),2) -> 766.35 | I183: =IF(ISERR(ROUND((E183*H183),2)),"",ROUND((E183*H183),2)) -> 1379.43 | J183: 92818 | K183: SINAPI
B184: 10.3.2.2 | C184: Tampa Pré-Moldada Ø1,55m | D184: M3 | E184: 0.09 | F184: 2190.42 | G184: ='BDI 20,34%'!$C$26 -> 0.2034 | H184: 2635.95 | I184: =IF(ISERR(ROUND((E184*H184),2)),"",ROUND((E184*H184),2)) -> 237.24 | J184: 97739 | K184: SINAPI
B185: 10.3.2.3 | C185: Fundo Falso Pré-Moldada Ø1,20m | D185: M3 | E185: 0.09 | F185: 2190.42 | G185: ='BDI 20,34%'!$C$26 -> 0.2034 | H185: 2635.95 | I185: =IF(ISERR(ROUND((E185*H185),2)),"",ROUND((E185*H185),2)) -> 237.24 | J185: 97739 | K185: SINAPI
B186: 10.3.2.4 | C186: Concreto Usinado (fornecimento, lançamento, adensamento e bombeado) FCK=25MPA | D186: M3 | E186: 0.2 | F186: 379.03 | G186: ='BDI 20,34%'!$C$26 -> 0.2034 | H186: 456.12 | I186: =IF(ISERR(ROUND((E186*H186),2)),"",ROUND((E186*H186),2)) -> 91.22 | J186: 92722 | K186: SINAPI
B187: 10.3.2.5 | C187: Aço CA-50 - 10.0MM (fornecimento, corte, colocação) | D187: KG | E187: 31.45 | F187: 7.09 | G187: ='BDI 20,34%'!$C$26 -> 0.2034 | H187: 8.53 | I187: 268.27 | J187: 92787 | K187: SINAPI
B188: 10.3.2.6 | C188: Impermeabilização com Argamassa Polimérica Bicomponente Semiflexível, 03 Demãos Cruzadas | D188: M2 | E188: 10.25 | F188: 27.52 | G188: ='BDI 20,34%'!$C$26 -> 0.2034 | H188: 33.12 | I188: 339.48 | J188: 98555 | K188: SINAPI
B189: 10.3.2.7 | C189: Brita n2 (Fornecimento e colocação) | D189: M3 | E189: 1.06 | F189: 82.22 | G189: ='BDI 20,34%'!$C$26 -> 0.2034 | H189: 98.94 | I189: =IF(ISERR(ROUND((E189*H189),2)),"",ROUND((E189*H189),2)) -> 104.88 | J189: 88549 | K189: SINAPI
B190: 10.3.2.8 | C190: Calha de Concreto Ø15cm | D190: M | E190: 1.5 | F190: 24.29 | G190: ='BDI 20,34%'!$C$26 -> 0.2034 | H190: 29.23 | I190: 43.85 | J190: 73882/1 | K190: SINAPI
B191: 10.3.2.9 | C191: Tubo PVC, 100mm | D191: M | E191: 1.3 | F191: 43.71 | G191: ='BDI 20,34%'!$C$26 -> 0.2034 | H191: 52.6 | I191: 68.38 | J191: 89714 | K191: SINAPI
B192: 10.3.2.10 | C192: Joelho 90°, 100mm | D192: UN | E192: 1 | F192: 17.99 | G192: ='BDI 20,34%'!$C$26 -> 0.2034 | H192: 21.65 | I192: 21.65 | J192: 89746 | K192: SINAPI
B193: 10.3.2.11 | C193: Tubo PVC, 150mm | D193: M | E193: 2 | F193: 39.42 | G193: ='BDI 20,34%'!$C$26 -> 0.2034 | H193: 47.44 | I193: 94.88 | J193: 89849 | K193: SINAPI
B194: 10.3.3 | C194: Sumidouro Pré-Moldado, Ø1,50m, h=2,00m
B195: 10.3.3.1 | C195: Tubo de Concreto Ø1,50m, com Junta Rígida de Argamassa (incluso escavação, carga e transporte) | D195: M | E195: 2 | F195: 636.82 | G195: ='BDI 20,34%'!$C$26 -> 0.2034 | H195: =ROUND(((F195*G195)+F195),2) -> 766.35 | I195: =IF(ISERR(ROUND((E195*H195),2)),"",ROUND((E195*H195),2)) -> 1532.7 | J195: 92818 | K195: SINAPI
B196: 10.3.3.2 | C196: Tampa Pré-Moldada Ø1,25m | D196: M3 | E196: 0.09 | F196: 2190.42 | G196: ='BDI 20,34%'!$C$26 -> 0.2034 | H196: 2635.95 | I196: =IF(ISERR(ROUND((E196*H196),2)),"",ROUND((E196*H196),2)) -> 237.24 | J196: 97739 | K196: SINAPI
B197: 10.3.3.3 | C197: Brita n2 (Fornecimento e colocação) | D197: M3 | E197: 4.72 | F197: 82.22 | G197: ='BDI 20,34%'!$C$26 -> 0.2034 | H197: 98.94 | I197: =IF(ISERR(ROUND((E197*H197),2)),"",ROUND((E197*H197),2)) -> 467 | J197: 88549 | K197: SINAPI
B198: 10.3.3.4 | C198: Tubo PVC, 100mm | D198: M | E198: 1 | F198: 43.71 | G198: ='BDI 20,34%'!$C$26 -> 0.2034 | H198: 52.6 | I198: 52.6 | J198: 89714 | K198: SINAPI
B199: 10.3.3.5 | C199: Joelho 90°, 100mm | D199: UN | E199: 1 | F199: 17.99 | G199: ='BDI 20,34%'!$C$26 -> 0.2034 | H199: 21.65 | I199: 21.65 | J199: 89746 | K199: SINAPI
B200: 10.3.3.6 | C200: Tubo PVC, 150mm | D200: M | E200: 2 | F200: 39.42 | G200: ='BDI 20,34%'!$C$26 -> 0.2034 | H200: 47.44 | I200: 94.88 | J200: 89849 | K200: SINAPI
B201: 11 | C201: REDE PLUVIAL | H201: ∑ | I201: =SUBTOTAL(9,I202:I206) -> 394.09
... 82 more rows

Sheet BDI 20,34%
B2: O valor do BDI é obtido pela fórmula e taxas abaixo
B4: FÓRMULA BDI - Construção de Edifícios
B7: BDI = | C7: (1+AC+S+R+G)(1+DF)(1+L) | D7: -1
C8: _______________________________________
C9: (1-I)
B12: ONDE:
B13: AC = Taxa de Administração Central | E13: 0.03
B14: S = Taxa de Seguros | E14: 0.004
B15: G = Taxa de Garantias | E15: 0.004
B16: R = Taxa de Riscos | E16: 0.0097
B17: DF = Taxa de Despesas Financeiras | E17: 0.0059
B18: L = Taxa de Lucro / Remuneração | E18: 0.0774
B19: I = Taxa de Incidência de Impostos | E19: =D22 -> 0.0565
C20: I1: PIS e COFINS | D20: 0.0365
C21: I2: ISSQN (conforme legislação municipal) | D21: 0.02
C22: ∑ | D22: =SUM(D20:D21) -> 0.0565
B24: TEMOS ENTÃO ENTRANDO COM OS DADOS NA FÓRMULA
C26: =TRUNC(((((1+E13+E14+E15+E16)*(1+E17)*(1+E18))/(1-E19))-1),4) -> 0.2034
F493: COM003
F505: COM004
A507: 32.25 | B507: m2
A508: 3.23 | B508: m3
A509: 70.95 | B509: kg
A510: 3.23 | B510: m3
A511: 2 | B511: un
A512: 7.44 | B512: m2 | E512: COM003

Sheet BDI 13,24%
B2: O valor do BDI é obtido pela fórmula e taxas abaixo
A4: FÓRMULA BDI - Fornecimento de Materiais e Equipamentos
B7: BDI = | C7: (1+AC+S+R+G)(1+DF)(1+L) | D7: -1
C8: _______________________________________
C9: (1-I)
B12: ONDE:
B13: AC = Taxa de Administração Central | E13: 0.015
B14: S = Taxa de Seguros | E14: 0.0015
B15: G = Taxa de Garantias | E15: 0.0015
B16: R = Taxa de Riscos | E16: 0.0056
B17: DF = Taxa de Despesas Financeiras | E17: 0.0085
B18: L = Taxa de Lucro / Remuneração | E18: 0.035
B19: I = Taxa de Incidência de Impostos | E19: =D22 -> 0.0565
C20: I1: PIS e COFINS | D20: 0.0365
C21: I2: ISSQN (conforme legislação municipal) | D21: 0.02
C22: ∑ | D22: =SUM(D20:D21) -> 0.0565
B24: TEMOS ENTÃO ENTRANDO COM OS DADOS NA FÓRMULA
C26: =TRUNC(((((1+E13+E14+E15+E16)*(1+E17)*(1+E18))/(1-E19))-1),4) -> 0.1324
F493: COM003
F505: COM004
A507: 32.25 | B507: m2
A508: 3.23 | B508: m3
A509: 70.95 | B509: kg
A510: 3.23 | B510: m3
A511: 2 | B511: un
A512: 7.44 | B512: m2 | E512: COM003
